[Event "Austrian Youth-ch U16 Girls 2024"]
[Site "Leibnitz"]
[Date "2024.03.26"]
[Round "5.3"]
[White "Kotliar, Anfisa"]
[Black "Giselbrecht, Leefke"]
[Result "1/2-1/2"]
[ECO "B25"]
[WhiteElo "1644"]
[BlackElo "1695"]
[Annotator "NA RC"]
[PlyCount "112"]
[EventDate "2024.03.23"]
[EventType "swiss"]
[EventCountry "AUT"]
[SourceTitle "playchess.com"]
[Source "ChessBase"]
[SourceQuality "1"]
[TimeControl "5400+30"]

1. e4 {[%emt 0:00:02]} c5 {[%emt 0:00:07]} 2. Nc3 {[%emt 0:00:05]} Nc6 {[%emt 0:00:16]} 3. f4 {[%emt 0:00:12]} g6 {[%emt 0:02:08]} 4. Nf3 {[%emt 0:00:19]} Bg7 {[%emt 0:00:54]} 5. d3 {[%emt 0:00:27]} d6 {[%emt 0:00:32]} 6. g3 {[%emt 0:00:42]} e6 {[%emt 0:01:23]} 7. Be3 {[%emt 0:02:07]} Nge7 {[%emt 0:03:05]} 8. Bg2 {[%emt 0:00:36]} O-O {[%emt 0:00:21]} 9. O-O {[%emt 0:00:21]} b6 {[%emt 0:01:30]} 10. d4 {[%emt 0:09:35]} d5 {[%emt 0:04:41]} 11. exd5 {[%emt 0:07:09]} Nf5 {[%emt 0:03:10]} 12. Bf2 {[%emt 0:07:59]} Ncxd4 {[%emt 0:08:23]} 13. Nxd4 {[%emt 0:13:40]} cxd4 {[%emt 0:05:01]} 14. dxe6 {[%emt 0:05:03]} Bxe6 {[%emt 0:01:28]} 15. Nb5 {[%emt 0:18:55]} Bc4 {[%emt 0:23:12]} 16. Bxa8 {[%emt 0:09:25]} Bxf1 {[%emt 0:00:33]} 17. Qxf1 {[%emt 0:05:12]} Qxa8 {[%emt 0:00:11]} 18. g4 {[%emt 0:00:50]} Ne3 {[%emt 0:02:00]} 19. Bxe3 {[%emt 0:00:58]} dxe3 {[%emt 0:00:04]} 20. c3 {[%emt 0:00:38]} Qb7 {[%emt 0:06:07]} 21. Re1 {[%emt 0:03:44]} a6 {[%emt 0:01:15]} 22. Na3 {[%emt 0:02:21]} Qe4 {[%emt 0:06:22]} 23. Nc4 {[%emt 0:02:15]} Qe6 {[%emt 0:01:02]} 24. f5 {[%emt 0:01:20]} gxf5 {[%emt 0:02:24]} 25. gxf5 {[%emt 0:00:09]} e2 {[%emt 0:01:51]} 26. fxe6 {[%emt 0:04:26]} exf1=Q+ {[%emt 0:25:30]} 27. Rxf1 {[%emt 0:00:07]} fxe6 {[%emt 0:00:00]} 28. Rxf8+ {[%emt 0:00:23]} Bxf8 {[%emt 0:00:00]} 29. Kg2 {[%emt 0:00:20]} b5 {[%emt 0:00:00]} 30. Ne5 {[%emt 0:01:03]} Kg7 {[%emt 0:00:00]} 31. Nc6 {[%emt 0:00:53]} Bd6 {[%emt 0:00:00]} 32. h3 {[%emt 0:02:40]} Kf6 {[%emt 0:00:00]} 33. a3 {[%emt 0:01:37]} e5 {[%emt 0:00:00]} 34. Nb4 {[%emt 0:00:44]} a5 {[%emt 0:00:00]} 35. Nc6 {[%emt 0:00:30]} Bc7 {[%emt 0:00:00]} 36. Na7 {[%emt 0:00:20]} b4 {[%emt 0:00:00]} 37. cxb4 {[%emt 0:00:14]} axb4 {[%emt 0:00:00]} 38. axb4 {[%emt 0:01:00]} Ke6 {[%emt 0:00:00]} 39. Kf3 {[%emt 0:00:57]} Kd5 {[%emt 0:00:00]} 40. b5 {[%emt 0:00:18]} e4+ {[%emt 0:00:00]} 41. Ke2 {[%emt 0:00:23]} Kc4 {[%emt 0:00:00]} 42. Nc8 {[%emt 0:00:51]} Kxb5 {[%emt 0:00:00]} 43. Ke3 {[%emt 0:00:10]} Be5 {[%emt 0:00:00]} 44. b3 {[%emt 0:00:34]} Kb4 {[%emt 0:00:00]} 45. Kxe4 {[%emt 0:00:14]} Bb2 {[%emt 0:00:00]} 46. Kf5 {[%emt 0:00:52]} Kxb3 {[%emt 0:00:00]} 47. Nd6 {[%emt 0:00:39]} Bc1 {[%emt 0:00:00]} 48. Nf7 {[%emt 0:00:27]} Kc4 {[%emt 0:00:00]} 49. Ng5 {[%emt 0:00:36]} h6 {[%emt 0:00:00]} 50. Nf7 {[%emt 0:00:20]} Kd5 {[%emt 0:00:00]} 51. Ne5 {[%emt 0:00:34]} Bd2 {[%emt 0:00:00]} 52. Ng4 {[%emt 0:00:32]} Bc1 {[%emt 0:00:00]} 53. h4 {[%emt 0:00:24]} Kd6 {[%emt 0:00:00]} 54. h5 {[%emt 0:00:25]} Ke7 {[%emt 0:00:00]} 55. Kg6 {[%emt 0:00:12]} Kf8 {[%emt 0:00:00]} 56. Nf6 {[%emt 0:00:39]} Bd2 {[%emt 0:00:00]} 1/2-1/2

[Event "Austrian Youth-ch U16 Girls 2024"]
[Site "Leibnitz"]
[Date "2024.03.26"]
[Round "5.4"]
[White "Antenreiter, Lena"]
[Black "Gaisberger, Nina"]
[Result "1-0"]
[ECO "C52"]
[WhiteElo "1579"]
[BlackElo "1711"]
[Annotator "NA RC"]
[PlyCount "39"]
[EventDate "2024.03.23"]
[EventType "swiss"]
[EventCountry "AUT"]
[SourceTitle "playchess.com"]
[Source "ChessBase"]
[SourceQuality "1"]
[TimeControl "5400+30"]

1. e4 {[%emt 0:00:01]} e5 {[%emt 0:00:01]} 2. Nf3 {[%emt 0:00:09]} Nc6 {[%emt 0:00:04]} 3. Bc4 {[%emt 0:00:08]} Bc5 {[%emt 0:00:05]} 4. b4 {[%emt 0:01:40]} Bxb4 {[%emt 0:01:55]} 5. c3 {[%emt 0:00:06]} Ba5 {[%emt 0:00:28]} 6. d4 {[%emt 0:08:38]} exd4 {[%emt 0:06:12]} 7. O-O {[%emt 0:00:32]} Nge7 {[%emt 0:00:35]} 8. Bxf7+ {[%emt 0:15:21]} Kxf7 {[%emt 0:04:06]} 9. Ng5+ {[%emt 0:00:05]} Ke8 {[%emt 0:00:09]} 10. Qf3 {[%emt 0:06:24]} Ne5 {[%emt 0:00:52]} 11. Qh5+ {[%emt 0:06:32]} g6 {[%emt 0:09:15]} 12. Qh4 {[%emt 0:02:34]} N7c6 {[%emt 0:08:37]} 13. f4 {[%emt 0:04:24]} Nf7 {[%emt 0:09:47]} 14. f5 {[%emt 0:00:56]} h6 {[%emt 0:14:18]} 15. fxg6 {[%emt 0:09:13]} Nxg5 {[%emt 0:00:54]} 16. g7 {[%emt 0:00:57]} Nf3+ {[%emt 0:01:16]} 17. Rxf3 {[%emt 0:00:07]} Qxh4 {[%emt 0:00:09]} 18. gxh8=Q+ {[%emt 0:00:12]} Ke7 {[%emt 0:00:17]} 19. Qf8+ {[%emt 0:10:08]} Ke6 {[%emt 0:00:32]} 20. Qf7+ {[%emt 0:00:47]} 1-0

[Event "Austrian Youth-ch U16 Girls 2024"]
[Site "Leibnitz"]
[Date "2024.03.27"]
[Round "6.2"]
[White "Brunner, Josephina Akiko"]
[Black "Theurl, Rafaela"]
[Result "1-0"]
[ECO "B01"]
[WhiteElo "1697"]
[BlackElo "1684"]
[Annotator "NA RC"]
[PlyCount "83"]
[EventDate "2024.03.23"]
[EventType "swiss"]
[EventCountry "AUT"]
[SourceTitle "playchess.com"]
[Source "ChessBase"]
[SourceQuality "1"]
[TimeControl "5400+30"]

1. e4 {[%emt 0:00:05]} d5 {[%emt 0:00:09]} 2. exd5 {[%emt 0:00:24]} Qxd5 {[%emt 0:00:09]} 3. Nc3 {[%emt 0:00:26]} Qa5 {[%emt 0:00:09]} 4. d4 {[%emt 0:01:10]} Nf6 {[%emt 0:00:28]} 5. Nf3 {[%emt 0:01:20]} Bg4 {[%emt 0:00:58]} 6. h3 {[%emt 0:01:37]} Bd7 {[%emt 0:01:42]} 7. Bc4 {[%emt 0:10:19]} e6 {[%emt 0:03:30]} 8. O-O {[%emt 0:03:39]} Bd6 {[%emt 0:06:59]} 9. Bd2 {[%emt 0:02:38]} O-O {[%emt 0:04:01]} 10. Nd5 {[%emt 0:02:38]} Qa4 {[%emt 0:04:38]} 11. b3 {[%emt 0:02:42]} Qc6 {[%emt 0:02:59]} 12. Nxf6+ {[%emt 0:00:59]} gxf6 {[%emt 0:04:01]} 13. Nh4 {[%emt 0:01:49]} Qe4 {[%emt 0:08:11]} 14. Qh5 {[%emt 0:02:14]} Qxd4 {[%emt 0:04:32]} 15. Bd3 {[%emt 0:05:30]} f5 {[%emt 0:03:24]} 16. Bh6 {[%emt 0:02:54]} Re8 {[%emt 0:03:51]} 17. Qg5+ {[%emt 0:00:41]} Kh8 {[%emt 0:03:09]} 18. c3 {[%emt 0:02:48]} Qxc3 {[%emt 0:12:49]} 19. Rac1 {[%emt 0:00:25]} Qe5 {[%emt 0:02:32]} 20. Nf3 {[%emt 0:00:24]} Qb2 {[%emt 0:01:12]} 21. Rc2 {[%emt 0:00:14]} Be7 {[%emt 0:00:33]} 22. Rxb2 {[%emt 0:00:23]} Bxg5 {[%emt 0:00:29]} 23. Nxg5 {[%emt 0:00:08]} Kg8 {[%emt 0:01:55]} 24. g4 {[%emt 0:00:11]} f6 {[%emt 0:01:22]} 25. Nf3 {[%emt 0:01:07]} fxg4 {[%emt 0:03:44]} 26. hxg4 {[%emt 0:00:08]} e5 {[%emt 0:00:44]} 27. Bc4+ {[%emt 0:02:17]} Kh8 {[%emt 0:00:49]} 28. Kh2 {[%emt 0:02:18]} Bxg4 {[%emt 0:01:44]} 29. Rg1 {[%emt 0:00:13]} Be6 {[%emt 0:06:29]} 30. Bxe6 {[%emt 0:01:18]} Rxe6 {[%emt 0:00:06]} 31. Bg7+ {[%emt 0:00:12]} Kg8 {[%emt 0:00:09]} 32. Bxf6+ {[%emt 0:00:08]} Kf7 {[%emt 0:00:23]} 33. Bxe5 {[%emt 0:00:14]} Rh6+ {[%emt 0:01:16]} 34. Kg2 {[%emt 0:00:05]} c6 {[%emt 0:01:35]} 35. Kf1 {[%emt 0:01:49]} b6 {[%emt 0:01:21]} 36. Rd2 {[%emt 0:00:21]} Na6 {[%emt 0:00:57]} 37. Rg7+ {[%emt 0:01:10]} Kf8 {[%emt 0:01:45]} 38. Rdd7 {[%emt 0:00:17]} Nc5 {[%emt 0:00:53]} 39. Rdf7+ {[%emt 0:01:33]} Ke8 {[%emt 0:00:17]} 40. Re7+ {[%emt 0:00:09]} Kf8 {[%emt 0:00:41]} 41. Ng5 {[%emt 0:01:06]} Re8 {[%emt 0:02:11]} 42. Ref7# {[%emt 0:00:13]} 1-0

[Event "Austrian Youth-ch U16 Girls 2024"]
[Site "Leibnitz"]
[Date "2024.03.27"]
[Round "6.3"]
[White "Schirmbeck, Klara"]
[Black "Kotliar, Anfisa"]
[Result "0-1"]
[ECO "A12"]
[WhiteElo "1515"]
[BlackElo "1644"]
[Annotator "NA RC"]
[PlyCount "74"]
[EventDate "2024.03.23"]
[EventType "swiss"]
[EventCountry "AUT"]
[SourceTitle "playchess.com"]
[Source "ChessBase"]
[SourceQuality "1"]
[TimeControl "5400+30"]

1. Nf3 {[%emt 0:00:03]} c6 {[%emt 0:00:11]} 2. g3 {[%emt 0:00:08]} d5 {[%emt 0:00:15]} 3. Bg2 {[%emt 0:00:33]} Nf6 {[%emt 0:00:24]} 4. O-O {[%emt 0:00:34]} Bf5 {[%emt 0:00:28]} 5. d3 {[%emt 0:00:38]} e6 {[%emt 0:00:40]} 6. b3 {[%emt 0:01:52]} Be7 {[%emt 0:03:50]} 7. Bb2 {[%emt 0:01:02]} O-O {[%emt 0:01:21]} 8. c4 {[%emt 0:02:02]} Nbd7 {[%emt 0:09:50]} 9. Nbd2 {[%emt 0:01:06]} Rc8 {[%emt 0:08:14]} 10. Nh4 {[%emt 0:05:04]} Bg6 {[%emt 0:01:19]} 11. Nxg6 {[%emt 0:01:23]} hxg6 {[%emt 0:04:16]} 12. f4 {[%emt 0:03:18]} Ng4 {[%emt 0:10:14]} 13. Qc1 {[%emt 0:03:09]} Bf6 {[%emt 0:10:03]} 14. Nf3 {[%emt 0:04:03]} dxc4 {[%emt 0:12:10]} 15. Bxf6 {[%emt 0:01:58]} gxf6 {[%emt 0:03:36]} 16. bxc4 {[%emt 0:05:04]} e5 {[%emt 0:05:20]} 17. h3 {[%emt 0:04:25]} Nh6 {[%emt 0:10:57]} 18. fxe5 {[%emt 0:00:50]} Nf5 {[%emt 0:04:14]} 19. g4 {[%emt 0:04:26]} Ng7 {[%emt 0:09:54]} 20. exf6 {[%emt 0:00:50]} Nxf6 {[%emt 0:00:48]} 21. Rb1 {[%emt 0:00:57]} Re8 {[%emt 0:01:42]} 22. Qf4 {[%emt 0:01:52]} Ne6 {[%emt 0:01:03]} 23. Qd2 {[%emt 0:01:14]} b6 {[%emt 0:00:30]} 24. Qc3 {[%emt 0:01:01]} Rc7 {[%emt 0:00:37]} 25. Rf2 {[%emt 0:01:40]} Nf4 {[%emt 0:00:28]} 26. Ne5 {[%emt 0:02:19]} Nxg2 {[%emt 0:00:30]} 27. Kxg2 {[%emt 0:00:29]} Qd6 {[%emt 0:00:21]} 28. Nxg6 {[%emt 0:03:50]} fxg6 {[%emt 0:00:41]} 29. Rxf6 {[%emt 0:00:15]} Rxe2+ {[%emt 0:00:27]} 30. Rf2 {[%emt 0:08:34]} Rxf2+ {[%emt 0:00:19]} 31. Kxf2 {[%emt 0:00:02]} Qh2+ {[%emt 0:00:26]} 32. Ke3 {[%emt 0:00:01]} Re7+ {[%emt 0:00:38]} 33. Kf3 {[%emt 0:00:26]} Qxh3+ {[%emt 0:00:36]} 34. Kf2 {[%emt 0:00:11]} Qe3+ {[%emt 0:00:33]} 35. Kg2 {[%emt 0:06:21]} Qe2+ {[%emt 0:00:21]} 36. Kh1 {[%emt 0:01:56]} Qf3+ {[%emt 0:00:14]} 37. Kg1 {[%emt 0:00:11]} Re2 {[%emt 0:00:33]} 0-1

[Event "Austrian Youth-ch U16 Girls 2024"]
[Site "Leibnitz"]
[Date "2024.03.27"]
[Round "6.4"]
[White "Giselbrecht, Leefke"]
[Black "Luca, Iana"]
[Result "1-0"]
[ECO "B13"]
[WhiteElo "1695"]
[BlackElo "1452"]
[Annotator "NA RC"]
[PlyCount "109"]
[EventDate "2024.03.23"]
[EventType "swiss"]
[EventCountry "AUT"]
[SourceTitle "playchess.com"]
[Source "ChessBase"]
[SourceQuality "1"]
[TimeControl "5400+30"]

1. e4 {[%emt 0:00:03]} c6 {[%emt 0:00:03]} 2. d4 {[%emt 0:00:07]} d5 {[%emt 0:00:05]} 3. exd5 {[%emt 0:00:19]} cxd5 {[%emt 0:00:07]} 4. Bd3 {[%emt 0:00:20]} Nf6 {[%emt 0:00:11]} 5. c3 {[%emt 0:00:40]} Bg4 {[%emt 0:03:09]} 6. Qb3 {[%emt 0:02:16]} Qc7 {[%emt 0:00:07]} 7. Nd2 {[%emt 0:03:40]} Nc6 {[%emt 0:02:00]} 8. Ngf3 {[%emt 0:01:41]} e6 {[%emt 0:02:10]} 9. O-O {[%emt 0:01:51]} Bd6 {[%emt 0:00:39]} 10. Re1 {[%emt 0:02:54]} O-O {[%emt 0:00:17]} 11. h3 {[%emt 0:04:41]} Bh5 {[%emt 0:00:32]} 12. a3 {[%emt 0:02:32]} a6 {[%emt 0:00:22]} 13. Qc2 {[%emt 0:01:23]} Bxf3 {[%emt 0:02:55]} 14. Nxf3 {[%emt 0:00:07]} h6 {[%emt 0:00:11]} 15. Bd2 {[%emt 0:01:36]} Rac8 {[%emt 0:03:41]} 16. Re2 {[%emt 0:03:01]} Rfe8 {[%emt 0:03:00]} 17. Rae1 {[%emt 0:00:51]} Qb6 {[%emt 0:08:01]} 18. Qb1 {[%emt 0:02:51]} Na5 {[%emt 0:01:36]} 19. Ne5 {[%emt 0:02:18]} Re7 {[%emt 0:05:12]} 20. f4 {[%emt 0:03:41]} Nc4 {[%emt 0:02:23]} 21. Bxc4 {[%emt 0:03:59]} dxc4 {[%emt 0:00:13]} 22. f5 {[%emt 0:01:12]} Bxe5 {[%emt 0:02:10]} 23. Rxe5 {[%emt 0:00:29]} Rc6 {[%emt 0:04:04]} 24. fxe6 {[%emt 0:02:44]} Rcxe6 {[%emt 0:00:19]} 25. Rxe6 {[%emt 0:11:50]} Rxe6 {[%emt 0:00:16]} 26. Rxe6 {[%emt 0:00:51]} fxe6 {[%emt 0:02:08]} 27. Bxh6 {[%emt 0:02:24]} Kf7 {[%emt 0:01:07]} 28. Bc1 {[%emt 0:02:49]} Qb3 {[%emt 0:04:10]} 29. Bg5 {[%emt 0:01:49]} Qb5 {[%emt 0:09:54]} 30. h4 {[%emt 0:04:46]} Nd5 {[%emt 0:03:06]} 31. Qf1+ {[%emt 0:01:56]} Nf6 {[%emt 0:00:09]} 32. Bc1 {[%emt 0:01:24]} Qb6 {[%emt 0:08:09]} 33. Qxc4 {[%emt 0:01:19]} Qd6 {[%emt 0:02:05]} 34. Qc8 {[%emt 0:03:56]} b5 {[%emt 0:00:13]} 35. Qb7+ {[%emt 0:01:09]} Kg6 {[%emt 0:00:11]} 36. Qf3 {[%emt 0:00:59]} a5 {[%emt 0:02:46]} 37. Qd3+ {[%emt 0:00:31]} Kf7 {[%emt 0:00:34]} 38. Qxb5 {[%emt 0:01:00]} Qg3 {[%emt 0:05:36]} 39. Qg5 {[%emt 0:02:34]} Qe1+ {[%emt 0:01:03]} 40. Kh2 {[%emt 0:00:08]} Ng4+ {[%emt 0:01:20]} 41. Qxg4 {[%emt 0:00:19]} Qxc1 {[%emt 0:00:07]} 42. Qh5+ {[%emt 0:02:37]} Kf8 {[%emt 0:01:00]} 43. Qf3+ {[%emt 0:01:43]} Ke7 {[%emt 0:00:41]} 44. Qe2 {[%emt 0:01:11]} Kf7 {[%emt 0:02:00]} 45. g3 {[%emt 0:00:53]} Ke7 {[%emt 0:00:48]} 46. d5 {[%emt 0:00:21]} Kd8 {[%emt 0:01:14]} 47. dxe6 {[%emt 0:01:42]} Ke7 {[%emt 0:00:09]} 48. Kg2 {[%emt 0:00:56]} Qb1 {[%emt 0:00:41]} 49. g4 {[%emt 0:01:33]} Qg6 {[%emt 0:00:23]} 50. h5 {[%emt 0:00:33]} Qg5 {[%emt 0:00:16]} 51. Kg3 {[%emt 0:01:19]} Qc5 {[%emt 0:01:32]} 52. Kh3 {[%emt 0:01:12]} Qd5 {[%emt 0:00:34]} 53. Kh4 {[%emt 0:00:55]} Kf6 {[%emt 0:03:32]} 54. Qf2+ {[%emt 0:00:53]} Ke7 {[%emt 0:00:22]} 55. Qf7+ {[%emt 0:00:09]} 1-0

[Event "Austrian Youth-ch U16 Girls 2024"]
[Site "Leibnitz"]
[Date "2024.03.28"]
[Round "7.2"]
[White "Poetscher, Katharina"]
[Black "Kotliar, Anfisa"]
[Result "0-1"]
[ECO "C10"]
[WhiteElo "1794"]
[BlackElo "1644"]
[Annotator "NA RC"]
[PlyCount "102"]
[EventDate "2024.03.23"]
[EventType "swiss"]
[EventCountry "AUT"]
[SourceTitle "playchess.com"]
[Source "ChessBase"]
[SourceQuality "1"]
[TimeControl "5400+30"]

1. e4 {[%emt 0:00:02]} e6 {[%emt 0:00:06]} 2. d4 {[%emt 0:01:10]} d5 {[%emt 0:00:09]} 3. Nc3 {[%emt 0:01:59]} dxe4 {[%emt 0:00:13]} 4. Nxe4 {[%emt 0:00:13]} Be7 {[%emt 0:00:22]} 5. Nf3 {[%emt 0:01:59]} Nf6 {[%emt 0:00:17]} 6. Nxf6+ {[%emt 0:07:24]} Bxf6 {[%emt 0:00:11]} 7. Be3 {[%emt 0:00:30]} c5 {[%emt 0:12:33]} 8. c3 {[%emt 0:05:02]} cxd4 {[%emt 0:02:04]} 9. Nxd4 {[%emt 0:03:39]} a6 {[%emt 0:09:47]} 10. Qa4+ {[%emt 0:05:40]} Bd7 {[%emt 0:04:12]} 11. Qb4 {[%emt 0:01:25]} Qc7 {[%emt 0:03:12]} 12. Bd3 {[%emt 0:02:46]} Nc6 {[%emt 0:02:08]} 13. Nxc6 {[%emt 0:08:50]} Bxc6 {[%emt 0:03:11]} 14. O-O {[%emt 0:07:26]} Be7 {[%emt 0:12:21]} 15. Qg4 {[%emt 0:04:39]} O-O-O {[%emt 0:19:49]} 16. Be2 {[%emt 0:03:40]} h5 {[%emt 0:09:00]} 17. Qc4 {[%emt 0:06:01]} Bd6 {[%emt 0:10:15]} 18. f4 {[%emt 0:03:04]} g5 {[%emt 0:02:15]} 19. Bd4 {[%emt 0:11:00]} Rhg8 {[%emt 0:06:14]} 20. Bf6 {[%emt 0:01:46]} gxf4 {[%emt 0:01:12]} 21. Bf3 {[%emt 0:03:18]} Bxf3 {[%emt 0:00:50]} 22. Qxc7+ {[%emt 0:00:23]} Bxc7 {[%emt 0:00:17]} 23. Rxf3 {[%emt 0:00:48]} Rd2 {[%emt 0:00:18]} 24. Rf2 {[%emt 0:02:49]} Bb6 {[%emt 0:00:40]} 25. Bd4 {[%emt 0:00:50]} Rxd4 {[%emt 0:00:48]} 26. cxd4 {[%emt 0:00:06]} Bxd4 {[%emt 0:00:03]} 27. Rc1+ {[%emt 0:00:35]} Kb8 {[%emt 0:00:09]} 28. Rc4 {[%emt 0:01:54]} Bxf2+ {[%emt 0:00:27]} 29. Kxf2 {[%emt 0:00:02]} e5 {[%emt 0:00:21]} 30. Re4 {[%emt 0:03:27]} Re8 {[%emt 0:00:47]} 31. Re2 {[%emt 0:02:27]} e4 {[%emt 0:00:52]} 32. a3 {[%emt 0:00:43]} Kc7 {[%emt 0:00:29]} 33. Rc2+ {[%emt 0:00:16]} Kd6 {[%emt 0:00:19]} 34. b4 {[%emt 0:00:19]} Re7 {[%emt 0:00:31]} 35. Rd2+ {[%emt 0:00:51]} Ke6 {[%emt 0:00:37]} 36. Rc2 {[%emt 0:00:07]} Rd7 {[%emt 0:00:32]} 37. Ke2 {[%emt 0:00:42]} f5 {[%emt 0:00:23]} 38. Rc3 {[%emt 0:00:55]} h4 {[%emt 0:00:51]} 39. Rh3 {[%emt 0:01:17]} Rh7 {[%emt 0:00:22]} 40. Rc3 {[%emt 0:03:23]} h3 {[%emt 0:00:24]} 41. g3 {[%emt 0:00:36]} fxg3 {[%emt 0:00:19]} 42. Rxg3 {[%emt 0:00:11]} Ke5 {[%emt 0:00:31]} 43. Rg5 {[%emt 0:00:25]} Rd7 {[%emt 0:00:39]} 44. Rg3 {[%emt 0:00:25]} Rh7 {[%emt 0:00:41]} 45. Rg5 {[%emt 0:00:10]} Kf6 {[%emt 0:00:19]} 46. Rg8 {[%emt 0:00:28]} f4 {[%emt 0:00:14]} 47. Rf8+ {[%emt 0:00:19]} Rf7 {[%emt 0:00:44]} 48. Rh8 {[%emt 0:00:06]} f3+ {[%emt 0:00:20]} 49. Kf2 {[%emt 0:00:56]} Ke5 {[%emt 0:00:37]} 50. Rxh3 {[%emt 0:00:54]} e3+ {[%emt 0:00:30]} 51. Kxe3 {[%emt 0:00:06]} f2 {[%emt 0:00:10]} 0-1

[Event "Austrian Youth-ch U16 Girls 2024"]
[Site "Leibnitz"]
[Date "2024.03.28"]
[Round "7.3"]
[White "Wurm, Emily"]
[Black "Giselbrecht, Leefke"]
[Result "1-0"]
[ECO "B31"]
[WhiteElo "1536"]
[BlackElo "1695"]
[Annotator "NA RC"]
[PlyCount "89"]
[EventDate "2024.03.23"]
[EventType "swiss"]
[EventCountry "AUT"]
[SourceTitle "playchess.com"]
[Source "ChessBase"]
[SourceQuality "1"]
[TimeControl "5400+30"]

1. e4 {[%emt 0:00:01]} c5 {[%emt 0:00:09]} 2. Be2 {[%emt 0:00:07]} e6 {[%emt 0:03:04]} 3. d3 {[%emt 1:31:52]} Nc6 {[%emt 0:01:19]} 4. c3 {[%emt 0:00:00]} d5 {[%emt 0:03:24]} 5. Nd2 {[%emt 0:00:00]} Bd6 {[%emt 0:03:56]} 6. Nb1 {[%emt 0:00:00]} Nge7 {[%emt 0:04:16]} 7. f4 {[%emt 0:00:00]} O-O {[%emt 0:02:28]} 8. Nf3 {[%emt 0:00:00]} b5 {[%emt 0:02:32]} 9. O-O {[%emt 0:00:00]} c4 {[%emt 0:02:39]} 10. e5 {[%emt 0:00:00]} Bc7 {[%emt 0:01:27]} 11. d4 {[%emt 0:00:00]} f6 {[%emt 0:01:05]} 12. Be3 {[%emt 0:00:00]} b4 {[%emt 0:01:17]} 13. b3 {[%emt 0:00:00]} cxb3 {[%emt 0:06:15]} 14. axb3 {[%emt 0:00:00]} bxc3 {[%emt 0:00:23]} 15. Nxc3 {[%emt 0:00:00]} a6 {[%emt 0:02:45]} 16. Nb5 {[%emt 0:00:00]} Bb6 {[%emt 0:04:40]} 17. Nd6 {[%emt 0:00:00]} fxe5 {[%emt 0:06:39]} 18. fxe5 {[%emt 0:00:00]} Nf5 {[%emt 0:00:14]} 19. Nxf5 {[%emt 0:00:00]} Rxf5 {[%emt 0:00:29]} 20. Bd3 {[%emt 0:00:00]} Rf8 {[%emt 0:01:11]} 21. Qe1 {[%emt 0:00:00]} Qe7 {[%emt 0:03:51]} 22. Qg3 {[%emt 0:00:00]} g6 {[%emt 0:03:25]} 23. Bh6 {[%emt 0:00:00]} Nxd4 {[%emt 0:04:24]} 24. Nxd4 {[%emt 0:00:00]} Bxd4+ {[%emt 0:01:36]} 25. Kh1 {[%emt 0:00:00]} Rxf1+ {[%emt 0:01:19]} 26. Rxf1 {[%emt 0:00:00]} Bb7 {[%emt 0:01:41]} 27. Bxg6 {[%emt 0:00:00]} hxg6 {[%emt 0:08:37]} 28. Qxg6+ {[%emt 0:00:00]} Kh8 {[%emt 0:00:02]} 29. Rf7 {[%emt 0:00:00]} Qxf7 {[%emt 0:00:26]} 30. Qxf7 {[%emt 0:00:00]} Bxe5 {[%emt 0:00:04]} 31. Qxb7 {[%emt 0:00:00]} Rb8 {[%emt 0:00:12]} 32. Qxa6 {[%emt 0:00:00]} Rxb3 {[%emt 0:00:09]} 33. g3 {[%emt 0:00:00]} Rb1+ {[%emt 0:00:43]} 34. Kg2 {[%emt 0:00:00]} Rb2+ {[%emt 0:00:07]} 35. Kh3 {[%emt 0:00:00]} Kh7 {[%emt 0:00:27]} 36. Qxe6 {[%emt 0:00:00]} Bb8 {[%emt 0:00:19]} 37. Be3 {[%emt 0:00:00]} Re2 {[%emt 0:00:28]} 38. Qf5+ {[%emt 0:00:00]} Kg7 {[%emt 0:00:35]} 39. Qd3 {[%emt 0:00:00]} Ra2 {[%emt 0:00:50]} 40. Qxd5 {[%emt 0:00:00]} Re2 {[%emt 0:00:20]} 41. Bd4+ {[%emt 0:00:00]} Kh6 {[%emt 0:00:22]} 42. Qf7 {[%emt 0:00:00]} Be5 {[%emt 0:01:08]} 43. Bxe5 {[%emt 0:00:00]} Rxe5 {[%emt 0:00:10]} 44. Qf6+ {[%emt 0:00:00]} Kh7 {[%emt 0:00:19]} 45. Qxe5 {[%emt 0:00:00]} 1-0

[Event "Austrian Youth-ch U16 Girls 2024"]
[Site "Leibnitz"]
[Date "2024.03.28"]
[Round "7.4"]
[White "Gaisberger, Nina"]
[Black "Donets, Alina"]
[Result "0-1"]
[ECO "C45"]
[WhiteElo "1711"]
[BlackElo "1658"]
[Annotator "NA RC"]
[PlyCount "102"]
[EventDate "2024.03.23"]
[EventType "swiss"]
[EventCountry "AUT"]
[SourceTitle "playchess.com"]
[Source "ChessBase"]
[SourceQuality "1"]
[TimeControl "5400+30"]

1. e4 {[%emt 0:00:01]} e5 {[%emt 0:00:07]} 2. Nf3 {[%emt 0:00:04]} Nc6 {[%emt 0:00:09]} 3. d4 {[%emt 0:00:04]} exd4 {[%emt 0:00:07]} 4. Nxd4 {[%emt 0:00:06]} Qh4 {[%emt 0:00:15]} 5. Nc3 {[%emt 0:04:28]} Bb4 {[%emt 0:00:10]} 6. Qd3 {[%emt 0:00:15]} Nf6 {[%emt 0:01:18]} 7. Ndb5 {[%emt 0:03:45]} Kd8 {[%emt 0:00:22]} 8. Bd2 {[%emt 0:00:54]} Bxc3 {[%emt 0:01:18]} 9. Nxc3 {[%emt 0:00:14]} Nb4 {[%emt 0:01:22]} 10. Qc4 {[%emt 0:10:29]} Nxc2+ {[%emt 0:00:24]} 11. Kd1 {[%emt 0:00:19]} Nxa1 {[%emt 0:00:12]} 12. Bd3 {[%emt 0:00:30]} Qxf2 {[%emt 0:02:30]} 13. Rf1 {[%emt 0:10:16]} Qxg2 {[%emt 0:00:22]} 14. e5 {[%emt 0:00:14]} Qg4+ {[%emt 0:06:56]} 15. Be2 {[%emt 0:03:08]} Qxc4 {[%emt 0:02:50]} 16. Bxc4 {[%emt 0:00:07]} Ng4 {[%emt 0:02:40]} 17. Bxf7 {[%emt 0:00:41]} h6 {[%emt 0:00:18]} 18. Nd5 {[%emt 0:09:54]} Rf8 {[%emt 0:02:35]} 19. Bc3 {[%emt 0:00:59]} c6 {[%emt 0:02:22]} 20. Bb4 {[%emt 0:03:08]} cxd5 {[%emt 0:00:14]} 21. Bxf8 {[%emt 0:00:13]} Ne3+ {[%emt 0:00:11]} 22. Ke2 {[%emt 0:00:15]} Nxf1 {[%emt 0:00:04]} 23. Kxf1 {[%emt 0:00:02]} Nc2 {[%emt 0:02:30]} 24. Bxg7 {[%emt 0:00:38]} Ne3+ {[%emt 0:01:45]} 25. Ke2 {[%emt 0:00:34]} Nf5 {[%emt 0:00:30]} 26. Bf6+ {[%emt 0:00:45]} Kc7 {[%emt 0:00:40]} 27. Bxd5 {[%emt 0:02:37]} a5 {[%emt 0:01:53]} 28. Bc4 {[%emt 0:02:20]} b6 {[%emt 0:00:28]} 29. Kf3 {[%emt 0:01:57]} Nd4+ {[%emt 0:02:35]} 30. Ke4 {[%emt 0:00:13]} Nc6 {[%emt 0:01:56]} 31. Bg7 {[%emt 0:01:39]} Bb7 {[%emt 0:00:16]} 32. Kf4 {[%emt 0:00:12]} Re8 {[%emt 0:00:44]} 33. a4 {[%emt 0:00:29]} Nd4 {[%emt 0:00:39]} 34. Bxh6 {[%emt 0:00:47]} Rh8 {[%emt 0:00:59]} 35. Bg7 {[%emt 0:02:11]} Rxh2 {[%emt 0:00:20]} 36. Bf6 {[%emt 0:02:09]} Ne6+ {[%emt 0:00:22]} 37. Ke3 {[%emt 0:01:39]} Rxb2 {[%emt 0:00:25]} 38. Be7 {[%emt 0:02:59]} Rc2 {[%emt 0:01:04]} 39. Bd6+ {[%emt 0:00:19]} Kc8 {[%emt 0:00:11]} 40. Be2 {[%emt 0:01:10]} Bc6 {[%emt 0:00:42]} 41. Bd1 {[%emt 0:00:15]} Ra2 {[%emt 0:00:26]} 42. Bb3 {[%emt 0:00:59]} Ra1 {[%emt 0:00:07]} 43. Bxe6 {[%emt 0:02:23]} dxe6 {[%emt 0:00:16]} 44. Kd4 {[%emt 0:00:17]} Rxa4+ {[%emt 0:00:03]} 45. Kc3 {[%emt 0:00:09]} b5 {[%emt 0:00:24]} 46. Kb2 {[%emt 0:00:20]} Re4 {[%emt 0:00:09]} 47. Kc3 {[%emt 0:00:15]} b4+ {[%emt 0:00:08]} 48. Kb3 {[%emt 0:00:09]} a4+ {[%emt 0:00:04]} 49. Ka2 {[%emt 0:00:11]} Bd5+ {[%emt 0:00:05]} 50. Kb2 {[%emt 0:00:11]} a3+ {[%emt 0:00:05]} 51. Kb1 {[%emt 0:00:16]} a2+ {[%emt 0:00:17]} 0-1